[Event "*** Titled Tuesday Blitz"]
[Site "Chess.com"]
[Date "2020.12.29"]
[Round "1"]
[White "Stouuf"]
[Black "Khusenkhojaev"]
[Result "0-1"]
[WhiteElo "2616"]
[BlackElo "2385"]
[TimeControl "180+1"]
[EndTime "10:06:59 PST"]
[Termination "Khusenkhojaev won by resignation"]

1. e4 {[%clk 0:03:00.9]} 1... e5 {[%clk 0:02:58.7]} 2. Nf3 {[%clk 0:02:58.5]}
2... Nc6 {[%clk 0:02:58.6]} 3. Bb5 {[%clk 0:02:59]} 3... a6 {[%clk 0:02:57.2]}
4. Ba4 {[%clk 0:02:58.7]} 4... Nf6 {[%clk 0:02:57.4]} 5. Qe2 {[%clk 0:02:58.3]}
5... b5 {[%clk 0:02:55.1]} 6. Bb3 {[%clk 0:02:58.3]} 6... Bc5 {[%clk 0:02:55.7]}
7. c3 {[%clk 0:02:58.1]} 7... O-O {[%clk 0:02:54.9]} 8. O-O {[%clk 0:02:58.5]}
8... Re8 {[%clk 0:02:49]} 9. d3 {[%clk 0:02:56.2]} 9... d5 {[%clk 0:02:48]} 10.
a3 {[%clk 0:02:50.3]} 10... h6 {[%clk 0:02:46.1]} 11. h3 {[%clk 0:02:45.5]}
11... Be6 {[%clk 0:02:46]} 12. Nbd2 {[%clk 0:02:42.6]} 12... Qd7 {[%clk
0:02:41.2]} 13. Kh2 {[%clk 0:02:37.9]} 13... Rad8 {[%clk 0:02:38.1]} 14. Bc2
{[%clk 0:02:27]} 14... d4 {[%clk 0:02:30.4]} 15. Rd1 {[%clk 0:02:15.9]} 15...
Qe7 {[%clk 0:02:19.1]} 16. cxd4 {[%clk 0:02:06]} 16... Nxd4 {[%clk 0:02:18.3]}
17. Nxd4 {[%clk 0:02:05.8]} 17... Bxd4 {[%clk 0:02:17.9]} 18. Nf3 {[%clk
0:02:03.1]} 18... Bc8 {[%clk 0:02:13.6]} 19. Nxd4 {[%clk 0:01:58.2]} 19... Rxd4
{[%clk 0:02:14.5]} 20. Be3 {[%clk 0:01:56.8]} 20... Rd7 {[%clk 0:02:08.6]} 21.
b4 {[%clk 0:01:57.2]} 21... Red8 {[%clk 0:02:05.9]} 22. Rac1 {[%clk 0:01:49.5]}
22... Nh7 {[%clk 0:02:03.7]} 23. Bb3 {[%clk 0:01:44.2]} 23... Bb7 {[%clk
0:01:58.5]} 24. Rc3 {[%clk 0:01:39.5]} 24... Ng5 {[%clk 0:01:55.2]} 25. Rdc1
{[%clk 0:01:36.6]} 25... c6 {[%clk 0:01:41.8]} 26. Ba2 {[%clk 0:01:28]} 26...
Ne6 {[%clk 0:01:34.7]} 27. Qh5 {[%clk 0:01:20.7]} 27... Qf6 {[%clk 0:01:27.7]}
28. Bb1 {[%clk 0:01:09.3]} 28... Nf4 {[%clk 0:01:23.6]} 29. Qd1 {[%clk
0:01:02.6]} 29... c5 {[%clk 0:01:16]} 30. bxc5 {[%clk 0:00:57.4]} 30... Bxe4
{[%clk 0:01:15.1]} 31. Bxf4 {[%clk 0:00:57.4]} 31... Qxf4+ {[%clk 0:01:13.8]}
32. Kg1 {[%clk 0:00:57.8]} 32... Bc6 {[%clk 0:01:10]} 33. Qg4 {[%clk 0:00:51.4]}
33... Qf6 {[%clk 0:00:58.3]} 34. Qg3 {[%clk 0:00:49.9]} 34... Rd4 {[%clk
0:00:47.1]} 35. Re1 {[%clk 0:00:47.5]} 35... Rf4 {[%clk 0:00:46]} 36. Rcc1
{[%clk 0:00:42.2]} 36... Rf5 {[%clk 0:00:39.7]} 37. h4 {[%clk 0:00:41.6]} 37...
Rf4 {[%clk 0:00:38.8]} 38. Re3 {[%clk 0:00:39.1]} 38... Rdd4 {[%clk 0:00:20.7]}
39. Rce1 {[%clk 0:00:37.7]} 39... Rg4 {[%clk 0:00:19.9]} 40. Qxe5 {[%clk
0:00:37.5]} 40... Rxg2+ {[%clk 0:00:19.9]} 0-1

[Event "*** Titled Tuesday Blitz"]
[Site "Chess.com"]
[Date "2020.12.29"]
[Round "1"]
[White "Neftegor"]
[Black "Tsyhanchuk_Stanislav"]
[Result "1-0"]
[WhiteElo "2569"]
[BlackElo "2274"]
[TimeControl "180+1"]
[EndTime "10:07:00 PST"]
[Termination "Neftegor won on time"]

1. d4 {[%clk 0:03:00.9]} 1... Nf6 {[%clk 0:02:58.7]} 2. c4 {[%clk 0:03:00.4]}
2... e6 {[%clk 0:02:58.4]} 3. Nc3 {[%clk 0:03:00.3]} 3... Bb4 {[%clk 0:02:58.7]}
4. e3 {[%clk 0:03:00.5]} 4... c5 {[%clk 0:02:58]} 5. Bd3 {[%clk 0:03:00.1]} 5...
cxd4 {[%clk 0:02:57.7]} 6. exd4 {[%clk 0:02:59.7]} 6... O-O {[%clk 0:02:57.3]}
7. Ne2 {[%clk 0:02:59.1]} 7... d5 {[%clk 0:02:52.3]} 8. cxd5 {[%clk 0:02:59]}
8... Nxd5 {[%clk 0:02:46.3]} 9. O-O {[%clk 0:02:58.4]} 9... Nc6 {[%clk
0:02:43.8]} 10. a3 {[%clk 0:02:58.3]} 10... Be7 {[%clk 0:02:43.1]} 11. Bc2
{[%clk 0:02:58]} 11... b6 {[%clk 0:02:34.7]} 12. Qd3 {[%clk 0:02:56.1]} 12... g6
{[%clk 0:02:34.2]} 13. Bh6 {[%clk 0:02:55.2]} 13... Re8 {[%clk 0:02:33.3]} 14.
Ne4 {[%clk 0:02:55.1]} 14... Bf8 {[%clk 0:02:21.5]} 15. Bg5 {[%clk 0:02:53.8]}
15... Be7 {[%clk 0:02:21]} 16. h4 {[%clk 0:02:52.2]} 16... f5 {[%clk 0:01:40.7]}
17. N4c3 {[%clk 0:01:52.9]} 17... Bxg5 {[%clk 0:01:34]} 18. hxg5 {[%clk
0:01:52.2]} 18... Qxg5 {[%clk 0:01:30.1]} 19. Nxd5 {[%clk 0:01:50.8]} 19... exd5
{[%clk 0:01:31]} 20. Bb3 {[%clk 0:01:41]} 20... Be6 {[%clk 0:01:26.4]} 21. g3
{[%clk 0:01:39]} 21... Na5 {[%clk 0:01:18.6]} 22. Nf4 {[%clk 0:01:36.7]} 22...
Nxb3 {[%clk 0:01:03.4]} 23. Qxb3 {[%clk 0:01:35.6]} 23... Rad8 {[%clk
0:00:54.8]} 24. Rae1 {[%clk 0:01:34.6]} 24... Bf7 {[%clk 0:00:54.4]} 25. Qa4
{[%clk 0:01:30.7]} 25... h5 {[%clk 0:00:41.6]} 26. Qxa7 {[%clk 0:01:14.6]} 26...
h4 {[%clk 0:00:39.3]} 27. Kg2 {[%clk 0:01:14.7]} 27... hxg3 {[%clk 0:00:24.6]}
28. fxg3 {[%clk 0:01:14.5]} 28... Rc8 {[%clk 0:00:19.4]} 29. Rxe8+ {[%clk
0:01:07.7]} 29... Bxe8 {[%clk 0:00:18.2]} 30. Rf2 {[%clk 0:01:02.1]} 30... Qg4
{[%clk 0:00:15.3]} 31. Qb7 {[%clk 0:01:00]} 31... Rc1 {[%clk 0:00:13.3]} 32.
Qxd5+ {[%clk 0:00:59.5]} 32... Bf7 {[%clk 0:00:12.1]} 33. Qd8+ {[%clk
0:00:43.5]} 33... Kg7 {[%clk 0:00:11.4]} 34. Qe7 {[%clk 0:00:43.4]} 34... Qd1
{[%clk 0:00:02.5]} 35. Ne6+ {[%clk 0:00:38.3]} 35... Kh6 {[%clk 0:00:01.6]} 36.
Qh4+ {[%clk 0:00:35.9]} 1-0

[Event "*** Titled Tuesday Blitz"]
[Site "Chess.com"]
[Date "2020.12.29"]
[Round "1"]
[White "norwaytoadog"]
[Black "capatl"]
[Result "1-0"]
[WhiteElo "2204"]
[BlackElo "2512"]
[TimeControl "180+1"]
[EndTime "10:07:00 PST"]
[Termination "norwaytoadog won by resignation"]

1. e4 {[%clk 0:03:00.3]} 1... c5 {[%clk 0:02:59.7]} 2. Nf3 {[%clk 0:03:00]} 2...
e6 {[%clk 0:03:00.1]} 3. d4 {[%clk 0:02:59.6]} 3... cxd4 {[%clk 0:03:01]} 4.
Nxd4 {[%clk 0:02:59.9]} 4... a6 {[%clk 0:03:01.9]} 5. c4 {[%clk 0:02:59.4]} 5...
Nf6 {[%clk 0:03:00.1]} 6. Nc3 {[%clk 0:02:59.2]} 6... d6 {[%clk 0:03:00.7]} 7.
Be2 {[%clk 0:02:58]} 7... Nbd7 {[%clk 0:03:01.3]} 8. O-O {[%clk 0:02:55.5]} 8...
b6 {[%clk 0:02:53.2]} 9. f4 {[%clk 0:02:53.3]} 9... Bb7 {[%clk 0:02:52.8]} 10.
Bf3 {[%clk 0:02:31.3]} 10... Qc7 {[%clk 0:02:51.9]} 11. Qe2 {[%clk 0:02:27.8]}
11... Rc8 {[%clk 0:02:51.4]} 12. b3 {[%clk 0:02:22]} 12... b5 {[%clk 0:02:50.1]}
13. Bb2 {[%clk 0:01:45.6]} 13... bxc4 {[%clk 0:02:45.6]} 14. Rac1 {[%clk
0:01:45.3]} 14... Nc5 {[%clk 0:02:14.3]} 15. e5 {[%clk 0:01:21]} 15... Nfd7
{[%clk 0:02:00.6]} 16. Bxb7 {[%clk 0:01:06.7]} 16... Qxb7 {[%clk 0:01:54.6]} 17.
bxc4 {[%clk 0:01:05.3]} 17... dxe5 {[%clk 0:01:32.9]} 18. fxe5 {[%clk
0:01:02.4]} 18... Nxe5 {[%clk 0:01:20.4]} 19. Nd5 {[%clk 0:00:57.1]} 19... Ncd3
{[%clk 0:01:12]} 20. Rb1 {[%clk 0:00:50.7]} 20... exd5 {[%clk 0:01:06.5]} 21.
Nf3 {[%clk 0:00:44.7]} 21... Nxb2 {[%clk 0:00:40.2]} 22. Qxe5+ {[%clk
0:00:42.5]} 22... Qe7 {[%clk 0:00:36.1]} 23. Qxb2 {[%clk 0:00:36.3]} 23... Qc5+
{[%clk 0:00:22.2]} 24. Kh1 {[%clk 0:00:36.6]} 24... f6 {[%clk 0:00:19.4]} 25.
Qb7 {[%clk 0:00:35.8]} 25... Qc6 {[%clk 0:00:17.5]} 26. Rbe1+ {[%clk 0:00:35.1]}
26... Kd8 {[%clk 0:00:17.7]} 27. Qf7 {[%clk 0:00:33.3]} 27... Bd6 {[%clk
0:00:13]} 28. cxd5 {[%clk 0:00:31.9]} 28... Qd7 {[%clk 0:00:13.1]} 29. Qh5
{[%clk 0:00:30.8]} 29... g6 {[%clk 0:00:12.4]} 30. Qh4 {[%clk 0:00:29.8]} 30...
Rf8 {[%clk 0:00:11.3]} 31. Nd4 {[%clk 0:00:29.3]} 31... Be5 {[%clk 0:00:09.7]}
32. Ne6+ {[%clk 0:00:27.9]} 32... Ke7 {[%clk 0:00:09.4]} 33. Rxe5 {[%clk
0:00:27.1]} 33... Rf7 {[%clk 0:00:08.6]} 34. Ree1 {[%clk 0:00:26]} 34... Kd6
{[%clk 0:00:08]} 35. Qf4+ {[%clk 0:00:25.6]} 1-0

[Event "*** Titled Tuesday Blitz"]
[Site "Chess.com"]
[Date "2020.12.29"]
[Round "1"]
[White "GMJustin"]
[Black "maximnovik"]
[Result "0-1"]
[WhiteElo "2316"]
[BlackElo "2614"]
[TimeControl "180+1"]
[EndTime "10:07:01 PST"]
[Termination "maximnovik won on time"]

1. e4 {[%clk 0:02:51.7]} 1... c6 {[%clk 0:02:59.1]} 2. Ne2 {[%clk 0:02:49.9]}
2... d5 {[%clk 0:02:59.1]} 3. e5 {[%clk 0:02:49.7]} 3... c5 {[%clk 0:02:59.6]}
4. d4 {[%clk 0:02:43.4]} 4... Nc6 {[%clk 0:02:59.9]} 5. c3 {[%clk 0:02:36.3]}
5... h5 {[%clk 0:02:52.6]} 6. Nd2 {[%clk 0:02:25]} 6... h4 {[%clk 0:02:48.8]} 7.
h3 {[%clk 0:02:20.9]} 7... Bf5 {[%clk 0:02:44.2]} 8. Nf3 {[%clk 0:02:16.8]} 8...
e6 {[%clk 0:02:44.6]} 9. Bg5 {[%clk 0:01:59.1]} 9... Qb6 {[%clk 0:02:42.9]} 10.
Qb3 {[%clk 0:01:50.4]} 10... Be7 {[%clk 0:02:34.8]} 11. dxc5 {[%clk 0:01:29.7]}
11... Qxb3 {[%clk 0:02:27.6]} 12. axb3 {[%clk 0:01:28.7]} 12... Bxg5 {[%clk
0:02:18.1]} 13. Nxg5 {[%clk 0:01:28.2]} 13... Nxe5 {[%clk 0:02:17.8]} 14. Nd4
{[%clk 0:01:26.8]} 14... Bg6 {[%clk 0:02:10.4]} 15. Nb5 {[%clk 0:01:12.1]} 15...
Ke7 {[%clk 0:01:59.3]} 16. Rxa7 {[%clk 0:00:46.3]} 16... Rxa7 {[%clk 0:01:58]}
17. Nxa7 {[%clk 0:00:46.4]} 17... Nf6 {[%clk 0:01:58.5]} 18. Nb5 {[%clk
0:00:44.1]} 18... Ra8 {[%clk 0:01:16.7]} 19. Na3 {[%clk 0:00:43.6]} 19... Nfd7
{[%clk 0:01:03.3]} 20. b4 {[%clk 0:00:41]} 20... f6 {[%clk 0:01:02.5]} 21. Nf3
{[%clk 0:00:39.9]} 21... Nxf3+ {[%clk 0:01:00.6]} 22. gxf3 {[%clk 0:00:39.6]}
22... Ne5 {[%clk 0:01:01.1]} 23. f4 {[%clk 0:00:33.3]} 23... Be4 {[%clk
0:01:00.4]} 24. f3 {[%clk 0:00:25.2]} 24... Nxf3+ {[%clk 0:00:54.6]} 25. Kf2
{[%clk 0:00:25]} 25... Nd4 {[%clk 0:00:27.5]} 26. Bg2 {[%clk 0:00:20.5]} 26...
Bxg2 {[%clk 0:00:26]} 27. Kxg2 {[%clk 0:00:20.5]} 27... Nf5 {[%clk 0:00:26.4]}
28. Kf2 {[%clk 0:00:13]} 28... e5 {[%clk 0:00:26.1]} 29. fxe5 {[%clk 0:00:09.5]}
29... fxe5 {[%clk 0:00:25.4]} 30. Re1 {[%clk 0:00:09.5]} 30... Kf6 {[%clk
0:00:25.7]} 31. b5 {[%clk 0:00:06.2]} 31... g5 {[%clk 0:00:24.3]} 32. c4 {[%clk
0:00:04.6]} 32... d4 {[%clk 0:00:22.9]} 33. b6 {[%clk 0:00:02]} 33... Ne3 {[%clk
0:00:19.4]} 0-1

[Event "*** Titled Tuesday Blitz"]
[Site "Chess.com"]
[Date "2020.12.29"]
[Round "1"]
[White "Lady_Nika"]
[Black "FelixJoseYnojosa"]
[Result "0-1"]
[WhiteElo "2275"]
[BlackElo "2576"]
[TimeControl "180+1"]
[EndTime "10:07:03 PST"]
[Termination "FelixJoseYnojosa won by checkmate"]

1. d4 {[%clk 0:02:58.8]} 1... Nf6 {[%clk 0:02:58.1]} 2. e3 {[%clk 0:02:58.3]}
2... e6 {[%clk 0:02:58.2]} 3. f4 {[%clk 0:02:58.6]} 3... d5 {[%clk 0:02:58.6]}
4. Nf3 {[%clk 0:02:58.8]} 4... c5 {[%clk 0:02:58.3]} 5. c3 {[%clk 0:02:58.8]}
5... Nc6 {[%clk 0:02:58.2]} 6. Bd3 {[%clk 0:02:59]} 6... Bd6 {[%clk 0:02:58.2]}
7. O-O {[%clk 0:02:59.2]} 7... O-O {[%clk 0:02:57.1]} 8. Nbd2 {[%clk 0:02:59.2]}
8... Ne7 {[%clk 0:02:55.2]} 9. Ne5 {[%clk 0:02:59.4]} 9... Ng6 {[%clk
0:02:55.2]} 10. Qe2 {[%clk 0:02:57.5]} 10... Rb8 {[%clk 0:02:53.9]} 11. b3
{[%clk 0:02:57.5]} 11... Qc7 {[%clk 0:02:52.8]} 12. Bb2 {[%clk 0:02:57.5]} 12...
a6 {[%clk 0:02:52.4]} 13. Rf3 {[%clk 0:02:52.7]} 13... b5 {[%clk 0:02:51.9]} 14.
Rh3 {[%clk 0:02:52.6]} 14... c4 {[%clk 0:02:49.9]} 15. Bc2 {[%clk 0:02:41.7]}
15... a5 {[%clk 0:02:32.2]} 16. g4 {[%clk 0:02:41.3]} 16... Bxe5 {[%clk
0:02:20.7]} 17. fxe5 {[%clk 0:02:37.9]} 17... Nxe5 {[%clk 0:01:58.9]} 18. dxe5
{[%clk 0:02:36.9]} 18... Qxe5 {[%clk 0:01:59.8]} 19. Nf3 {[%clk 0:02:35.1]}
19... Qc7 {[%clk 0:01:56.7]} 20. g5 {[%clk 0:02:35]} 20... Ne4 {[%clk
0:01:55.8]} 21. Bxe4 {[%clk 0:02:27.9]} 21... dxe4 {[%clk 0:01:56.7]} 22. Nd2
{[%clk 0:02:28]} 22... Qe5 {[%clk 0:01:51.2]} 23. Qh5 {[%clk 0:02:25.8]} 23...
Qf5 {[%clk 0:01:51.4]} 24. Rf1 {[%clk 0:02:24.2]} 24... Qg6 {[%clk 0:01:51.5]}
25. Qxg6 {[%clk 0:02:24.1]} 25... hxg6 {[%clk 0:01:52.4]} 26. Nxe4 {[%clk
0:02:24.2]} 26... Bb7 {[%clk 0:01:51.9]} 27. Nc5 {[%clk 0:02:22.1]} 27... Bc6
{[%clk 0:01:50.9]} 28. bxc4 {[%clk 0:02:11.8]} 28... bxc4 {[%clk 0:01:51.8]} 29.
Ba3 {[%clk 0:02:12]} 29... Rfd8 {[%clk 0:01:51.9]} 30. Rh4 {[%clk 0:02:02.2]}
30... Rd2 {[%clk 0:01:48]} 31. Rg4 {[%clk 0:02:01.5]} 31... Rxa2 {[%clk
0:01:43.8]} 32. Bc1 {[%clk 0:02:00.6]} 32... Rb5 {[%clk 0:01:42.7]} 33. Ne4
{[%clk 0:01:57.9]} 33... Bxe4 {[%clk 0:01:42.8]} 34. Rxe4 {[%clk 0:01:57.4]}
34... Rxg5+ {[%clk 0:01:41]} 35. Kh1 {[%clk 0:01:55.7]} 35... Rh5 {[%clk
0:01:41.5]} 36. h4 {[%clk 0:01:47.4]} 36... g5 {[%clk 0:01:37.5]} 37. Rxc4
{[%clk 0:01:47]} 37... Rxh4+ {[%clk 0:01:30.4]} 38. Rxh4 {[%clk 0:01:43.4]}
38... gxh4 {[%clk 0:01:31.3]} 39. Rg1 {[%clk 0:01:37.8]} 39... Rc2 {[%clk
0:01:26.4]} 40. e4 {[%clk 0:01:36.6]} 40... Rxc3 {[%clk 0:01:24.9]} 41. Kh2
{[%clk 0:01:33.9]} 41... f6 {[%clk 0:01:19]} 42. Bh6 {[%clk 0:01:31.2]} 42...
Rg3 {[%clk 0:01:17.8]} 43. Bf4 {[%clk 0:01:27.5]} 43... Rxg1 {[%clk 0:01:11.1]}
44. Kxg1 {[%clk 0:01:27.3]} 44... Kf7 {[%clk 0:00:58.6]} 45. Kg2 {[%clk
0:01:23.3]} 45... g5 {[%clk 0:00:56.9]} 46. Bd6 {[%clk 0:01:16.3]} 46... f5
{[%clk 0:00:55.7]} 47. exf5 {[%clk 0:01:14.6]} 47... exf5 {[%clk 0:00:56.6]} 48.
Kh3 {[%clk 0:01:13.7]} 48... Kg6 {[%clk 0:00:55.9]} 49. Kh2 {[%clk 0:01:05.2]}
49... a4 {[%clk 0:00:54.7]} 50. Kg2 {[%clk 0:01:04.6]} 50... f4 {[%clk
0:00:48.3]} 51. Kh3 {[%clk 0:01:04.5]} 51... Kf5 {[%clk 0:00:46.8]} 52. Kg2
{[%clk 0:01:04.6]} 52... g4 {[%clk 0:00:46.6]} 53. Kg1 {[%clk 0:01:04.5]} 53...
g3 {[%clk 0:00:45.8]} 54. Kg2 {[%clk 0:01:04.5]} 54... Kg4 {[%clk 0:00:45.8]}
55. Kh1 {[%clk 0:01:04.8]} 55... h3 {[%clk 0:00:46.7]} 56. Bc5 {[%clk
0:01:04.3]} 56... f3 {[%clk 0:00:41.9]} 57. Kg1 {[%clk 0:01:03.2]} 57... f2+
{[%clk 0:00:42]} 58. Bxf2 {[%clk 0:01:01.8]} 58... gxf2+ {[%clk 0:00:41.7]} 59.
Kh2 {[%clk 0:01:02.5]} 59... a3 {[%clk 0:00:42.6]} 60. Kh1 {[%clk 0:01:02.1]}
60... f1=Q+ {[%clk 0:00:42.7]} 61. Kh2 {[%clk 0:01:02.7]} 61... Qg2# {[%clk
0:00:43.5]} 0-1

[Event "*** Titled Tuesday Blitz"]
[Site "Chess.com"]
[Date "2020.12.29"]
[Round "1"]
[White "horripile"]
[Black "AsaHoffmann"]
[Result "1-0"]
[WhiteElo "2677"]
[BlackElo "2351"]
[TimeControl "180+1"]
[EndTime "10:07:05 PST"]
[Termination "horripile won by checkmate"]

1. e4 {[%clk 0:02:59.3]} 1... d6 {[%clk 0:02:58.3]} 2. d4 {[%clk 0:02:58.5]}
2... c6 {[%clk 0:02:57.9]} 3. Nc3 {[%clk 0:02:57.9]} 3... a6 {[%clk 0:02:55.9]}
4. g3 {[%clk 0:02:53.3]} 4... Nf6 {[%clk 0:02:51.2]} 5. Bg2 {[%clk 0:02:53.2]}
5... Nbd7 {[%clk 0:02:50.3]} 6. Nge2 {[%clk 0:02:52.9]} 6... e5 {[%clk
0:02:49.6]} 7. O-O {[%clk 0:02:52.6]} 7... b5 {[%clk 0:02:49.3]} 8. h3 {[%clk
0:02:50.9]} 8... Be7 {[%clk 0:02:48.9]} 9. g4 {[%clk 0:02:50.2]} 9... Bb7 {[%clk
0:02:45.3]} 10. Ng3 {[%clk 0:02:50.2]} 10... Qc7 {[%clk 0:02:40.1]} 11. Be3
{[%clk 0:02:50.4]} 11... Nb6 {[%clk 0:02:37.6]} 12. b3 {[%clk 0:02:46.2]} 12...
g6 {[%clk 0:02:36.3]} 13. a4 {[%clk 0:02:40.9]} 13... b4 {[%clk 0:02:34.7]} 14.
Nce2 {[%clk 0:02:38.8]} 14... a5 {[%clk 0:02:34.1]} 15. f4 {[%clk 0:02:34.4]}
15... Nfd7 {[%clk 0:02:27.1]} 16. f5 {[%clk 0:02:21]} 16... Ba6 {[%clk
0:02:17.2]} 17. Rf2 {[%clk 0:02:20.3]} 17... f6 {[%clk 0:02:10.9]} 18. Kh2
{[%clk 0:01:58]} 18... O-O-O {[%clk 0:02:08.4]} 19. c4 {[%clk 0:01:52.5]} 19...
bxc3 {[%clk 0:01:59.6]} 20. Nxc3 {[%clk 0:01:50.9]} 20... exd4 {[%clk
0:01:57.8]} 21. Qxd4 {[%clk 0:01:42.5]} 21... Nc5 {[%clk 0:01:56.4]} 22. Rb1
{[%clk 0:01:33.2]} 22... Kb7 {[%clk 0:01:51]} 23. b4 {[%clk 0:01:32.7]} 23...
axb4 {[%clk 0:01:28.2]} 24. Rxb4 {[%clk 0:01:30.7]} 24... Ka8 {[%clk 0:01:17]}
25. Rfb2 {[%clk 0:01:28.5]} 25... Rb8 {[%clk 0:01:16]} 26. Nb5 {[%clk 0:00:44]}
26... cxb5 {[%clk 0:01:04]} 27. axb5 {[%clk 0:00:44.9]} 27... Ka7 {[%clk
0:00:28.5]} 28. bxa6 {[%clk 0:00:28.6]} 28... Nbd7 {[%clk 0:00:27.9]} 29. Rb7+
{[%clk 0:00:26.7]} 29... Rxb7 {[%clk 0:00:23.6]} 30. Rxb7+ {[%clk 0:00:27.6]}
30... Qxb7 {[%clk 0:00:23.3]} 31. axb7 {[%clk 0:00:28.5]} 31... Kxb7 {[%clk
0:00:23.5]} 32. e5+ {[%clk 0:00:28.9]} 32... Kc7 {[%clk 0:00:23.2]} 33. e6
{[%clk 0:00:24.1]} 33... Ne5 {[%clk 0:00:21.8]} 34. Qb4 {[%clk 0:00:19]} 34...
Rb8 {[%clk 0:00:20.9]} 35. Qa5+ {[%clk 0:00:19]} 35... Kc8 {[%clk 0:00:20]} 36.
Bxc5 {[%clk 0:00:18.1]} 36... dxc5 {[%clk 0:00:19.2]} 37. Ne4 {[%clk 0:00:18.2]}
37... Rb7 {[%clk 0:00:18.1]} 38. Nxc5 {[%clk 0:00:16.8]} 38... Bxc5 {[%clk
0:00:15.7]} 39. Qxc5+ {[%clk 0:00:17.7]} 39... Rc7 {[%clk 0:00:15.6]} 40. Qf8#
{[%clk 0:00:16.4]} 1-0

[Event "*** Titled Tuesday Blitz"]
[Site "Chess.com"]
[Date "2020.12.29"]
[Round "1"]
[White "Bodnar_Mykola"]
[Black "annamaja"]
[Result "0-1"]
[WhiteElo "2555"]
[BlackElo "2292"]
[TimeControl "180+1"]
[EndTime "10:07:05 PST"]
[Termination "annamaja won by checkmate"]

1. d4 {[%clk 0:02:59.9]} 1... d5 {[%clk 0:03:00.2]} 2. c4 {[%clk 0:03:00.1]}
2... c6 {[%clk 0:03:00.6]} 3. Nf3 {[%clk 0:03:00.2]} 3... Nf6 {[%clk 0:03:01.2]}
4. Nc3 {[%clk 0:03:00.4]} 4... e6 {[%clk 0:03:01.9]} 5. Qd3 {[%clk 0:03:00.1]}
5... Be7 {[%clk 0:03:02.5]} 6. g3 {[%clk 0:02:59.8]} 6... O-O {[%clk 0:03:02.9]}
7. Bg2 {[%clk 0:03:00.2]} 7... Nbd7 {[%clk 0:03:02.8]} 8. O-O {[%clk 0:03:00.2]}
8... b6 {[%clk 0:03:01.7]} 9. e4 {[%clk 0:02:59.4]} 9... dxe4 {[%clk 0:03:01.9]}
10. Nxe4 {[%clk 0:03:00.3]} 10... Nxe4 {[%clk 0:03:01.4]} 11. Qxe4 {[%clk
0:03:01.2]} 11... Bb7 {[%clk 0:03:02.1]} 12. Ne5 {[%clk 0:02:55.4]} 12... Nf6
{[%clk 0:02:51.2]} 13. Qf4 {[%clk 0:02:42.4]} 13... Qc8 {[%clk 0:02:20.9]} 14.
Be3 {[%clk 0:02:38.1]} 14... c5 {[%clk 0:02:17.7]} 15. Bxb7 {[%clk 0:02:32.1]}
15... Qxb7 {[%clk 0:02:18.6]} 16. dxc5 {[%clk 0:02:31.9]} 16... Bxc5 {[%clk
0:02:10.9]} 17. Bxc5 {[%clk 0:02:30]} 17... bxc5 {[%clk 0:02:11.8]} 18. b3
{[%clk 0:02:30]} 18... Rad8 {[%clk 0:02:10.2]} 19. Rad1 {[%clk 0:02:27.9]} 19...
Qa6 {[%clk 0:02:01.1]} 20. Rd2 {[%clk 0:02:25.3]} 20... Qa5 {[%clk 0:01:53.6]}
21. Rfd1 {[%clk 0:01:46.6]} 21... Rxd2 {[%clk 0:01:46.6]} 22. Rxd2 {[%clk
0:01:44.7]} 22... Qc3 {[%clk 0:01:42.5]} 23. Nc6 {[%clk 0:01:02.2]} 23... h6
{[%clk 0:00:47.6]} 24. Rd7 {[%clk 0:00:49.1]} 24... Qa1+ {[%clk 0:00:40.9]} 25.
Kg2 {[%clk 0:00:46.5]} 25... Nxd7 {[%clk 0:00:39.5]} 26. Qd6 {[%clk 0:00:41.5]}
26... Nf6 {[%clk 0:00:32.1]} 27. Ne7+ {[%clk 0:00:40.9]} 27... Kh7 {[%clk
0:00:31.8]} 28. Qd3+ {[%clk 0:00:40.4]} 28... g6 {[%clk 0:00:28.6]} 29. Qd6
{[%clk 0:00:37.6]} 29... Re8 {[%clk 0:00:24.5]} 30. Nc6 {[%clk 0:00:35.2]} 30...
Qe1 {[%clk 0:00:19]} 31. Qc7 {[%clk 0:00:32.2]} 31... Qe4+ {[%clk 0:00:18.5]}
32. Kg1 {[%clk 0:00:29.7]} 32... Rf8 {[%clk 0:00:16.9]} 33. Ne5 {[%clk
0:00:29.9]} 33... Kg7 {[%clk 0:00:13.4]} 34. Qxc5 {[%clk 0:00:30.5]} 34... h5
{[%clk 0:00:09.9]} 35. h4 {[%clk 0:00:28.4]} 35... Ng4 {[%clk 0:00:08.3]} 36.
Nd7 {[%clk 0:00:28.8]} 36... Rd8 {[%clk 0:00:07.1]} 37. Qc7 {[%clk 0:00:24.3]}
37... Qe1+ {[%clk 0:00:06.9]} 38. Kg2 {[%clk 0:00:24.6]} 38... Qxf2+ {[%clk
0:00:07.6]} 39. Kh3 {[%clk 0:00:25.5]} 39... Qh2# {[%clk 0:00:08.3]} 0-1

[Event "*** Titled Tuesday Blitz"]
[Site "Chess.com"]
[Date "2020.12.29"]
[Round "1"]
[White "EdmundPlayer"]
[Black "IMDT02"]
[Result "0-1"]
[WhiteElo "2207"]
[BlackElo "2538"]
[TimeControl "180+1"]
[EndTime "10:07:06 PST"]
[Termination "IMDT02 won on time"]

1. e4 {[%clk 0:03:00.5]} 1... c5 {[%clk 0:02:54.9]} 2. Nf3 {[%clk 0:02:57.7]}
2... Nc6 {[%clk 0:02:54.6]} 3. Bb5 {[%clk 0:02:55.4]} 3... Nf6 {[%clk
0:02:54.3]} 4. e5 {[%clk 0:02:43.5]} 4... Nd5 {[%clk 0:02:54]} 5. O-O {[%clk
0:02:27.2]} 5... Nc7 {[%clk 0:02:51.9]} 6. Bxc6 {[%clk 0:02:25.2]} 6... dxc6
{[%clk 0:02:52.8]} 7. Qe2 {[%clk 0:02:20.2]} 7... g6 {[%clk 0:02:52.1]} 8. h3
{[%clk 0:02:16.6]} 8... Bg7 {[%clk 0:02:51.5]} 9. Nc3 {[%clk 0:02:13.6]} 9...
O-O {[%clk 0:02:51.6]} 10. d3 {[%clk 0:02:13.3]} 10... Ne6 {[%clk 0:02:51.1]}
11. Bd2 {[%clk 0:01:50.8]} 11... Nd4 {[%clk 0:02:49.3]} 12. Nxd4 {[%clk
0:01:46.2]} 12... cxd4 {[%clk 0:02:50.2]} 13. Nd1 {[%clk 0:01:40.1]} 13... Be6
{[%clk 0:02:48.5]} 14. f4 {[%clk 0:01:39.2]} 14... c5 {[%clk 0:02:47.9]} 15. Nf2
{[%clk 0:01:37.9]} 15... c4 {[%clk 0:02:47.1]} 16. Ne4 {[%clk 0:01:36]} 16...
Rc8 {[%clk 0:02:44]} 17. b3 {[%clk 0:01:34.4]} 17... cxd3 {[%clk 0:02:41.8]} 18.
cxd3 {[%clk 0:01:34]} 18... Qb6 {[%clk 0:02:37.6]} 19. Rfc1 {[%clk 0:01:30.3]}
19... Bd5 {[%clk 0:02:36.5]} 20. Rxc8 {[%clk 0:01:03.7]} 20... Rxc8 {[%clk
0:02:37.4]} 21. Rc1 {[%clk 0:01:03.6]} 21... Rxc1+ {[%clk 0:02:37.4]} 22. Bxc1
{[%clk 0:01:03.2]} 22... Qc6 {[%clk 0:02:38.3]} 23. Bb2 {[%clk 0:00:57.7]} 23...
Bh6 {[%clk 0:01:37.6]} 24. g3 {[%clk 0:00:48.9]} 24... Qe6 {[%clk 0:01:34.4]}
25. Kh2 {[%clk 0:00:39.1]} 25... b6 {[%clk 0:01:06.6]} 26. Bxd4 {[%clk
0:00:34.2]} 26... Bc6 {[%clk 0:01:05.9]} 27. Nc3 {[%clk 0:00:19.6]} 27... Qf5
{[%clk 0:00:59.8]} 28. Be3 {[%clk 0:00:16.9]} 28... Bd7 {[%clk 0:00:43.2]} 29.
g4 {[%clk 0:00:15.4]} 29... Bxf4+ {[%clk 0:00:41.8]} 30. Kg2 {[%clk 0:00:07.7]}
30... Qg5 {[%clk 0:00:40.6]} 31. Bxf4 {[%clk 0:00:06]} 31... Qxf4 {[%clk
0:00:41]} 32. Qf3 {[%clk 0:00:03.6]} 32... Qxe5 {[%clk 0:00:31.3]} 33. Qa8+
{[%clk 0:00:01.3]} 33... Kg7 {[%clk 0:00:31]} 34. Ne4 {[%clk 0:00:01.3]} 34...
Qc7 {[%clk 0:00:24.2]} 0-1